bitfinex-derivatives/quotes_ETHF0:USTF0_20250321
["timestamp","ask_amount","ask_price","bid_price","bid_amount"]
[1742567367270,1.0246,1953.0,1952.9,1.02458]
[1742567367471,1.0246,1953.0,1952.9,4.65758]
[1742567367770,1.0246,1953.0,1952.9,3.633]
[1742567368267,0.6817,1953.1,1953.0,1.02455]
[1742567368467,0.6557,1953.2,1953.1,1.0245]
[1742567368669,0.6918,1953.3,1953.1,3.2078]
[1742567368861,1.71619,1953.3,1953.2,5.0432]
[1742567369265,1.80518982,1953.3,1953.2,5.0432]
[1742567369460,1.02455,1953.0,1952.9,4.23237]
[1742567369869,1.71623,1953.3,1953.2,1.02445]
[1742567370169,1.71623,1953.3,1953.2,3.632]
[1742567371566,1.71623,1953.3,1953.2,5.0432]
[1742567371761,1.71623,1953.3,1953.2,3.632]
[1742567371970,1.8052285,1953.3,1953.2,3.632]
[1742567372467,1.02455,1953.0,1952.9,50.5568]
[1742567372769,1.02455,1953.0,1952.9,54.1888]
[1742567372964,1.02455,1953.0,1952.9,55.4924]
[1742567374167,1.02455,1953.0,1952.9,52.2846]
[1742567374567,1.11356166,1953.0,1952.9,50.981]
[1742567374769,1.11356529,1953.0,1952.9,50.981]
[1742567375370,1.11356529,1953.0,1952.9,47.349]
[1742567375573,1.11356529,1953.0,1952.9,50.981]
[1742567375774,1.02471,1952.7,1952.6,1.3628]
[1742567376076,1.02471,1952.7,1952.6,4.9948]
[1742567376467,1.02481,1952.5,1952.4,47.35]
[1742567376779,1.02481,1952.5,1952.4,51.6426926]
[1742567377178,1.68101,1952.5,1952.4,51.6426926]
[1742567378473,1.68101,1952.5,1952.4,53.0441926]
[1742567380679,1.68101,1952.5,1952.4,51.6426926]
[1742567380977,1.68101,1952.5,1952.4,50.982]
[1742567381571,0.6562,1952.5,1952.2,6.8408]
[1742567381777,1.02492,1952.3,1952.2,5.0209]
[1742567382477,1.02492,1952.3,1952.2,5.68130115]
[1742567382979,1.02492,1952.3,1952.2,2.04830115]
[1742567383173,1.02492,1952.3,1952.2,5.68130115]
[1742567383368,1.02492,1952.3,1952.2,4.29340115]
[1742567383980,1.02492,1952.3,1952.2,3.633]
[1742567384874,1.02508,1952.0,1951.9,3.2078]
[1742567385081,1.02508,1952.0,1951.9,5.0216]
[1742567385273,1.02508,1952.0,1951.9,2.0489326]
[1742567385784,1.02508,1952.0,1951.9,1.3886]
[1742567385975,2.37288,1952.0,1951.9,1.3886]
[1742567388285,1.02518,1951.8,1951.7,3.2078]
[1742567388487,1.02518,1951.8,1951.7,4.6185]
[1742567388687,1.02518,1951.8,1951.7,5.0437]
[1742567388983,1.72658,1951.8,1951.7,5.0437]
[1742567390187,0.7014,1951.8,1951.7,6.06893]
[1742567390384,1.02518,1951.8,1951.7,6.06893]
[1742567390588,1.02518,1951.8,1951.7,9.27673]
[1742567390989,1.02518,1951.8,1951.7,9.27773]
[1742567391289,1.02518,1951.8,1951.7,8.2525]
[1742567391790,1.02518,1951.8,1951.7,5.0447]
[1742567391987,1.02518,1951.8,1951.7,6.06993]
[1742567392892,1.02518,1951.8,1951.7,5.0447]
[1742567393189,1.02518,1951.8,1951.7,6.06993]
[1742567393386,1.02518,1951.8,1951.7,5.0447]
[1742567394196,1.02529,1951.6,1951.5,3.2078]
[1742567394391,1.02529,1951.6,1951.5,6.8418]
[1742567394789,2.33639,1951.6,1951.5,6.8418]
[1742567395103,2.33639,1951.6,1951.5,8.1554]
[1742567395805,1.02525,1951.8,1951.7,1.02522]
[1742567396003,10.87312,1952.0,1951.9,1.02513]
[1742567396204,1.02512,1952.0,1951.9,7.86693]
[1742567396694,1.02512,1952.0,1951.9,9.19443]
[1742567396901,2.33512,1952.0,1951.9,8.1693]
[1742567397103,2.33512,1952.0,1951.9,9.19443]
[1742567397598,2.33512,1952.0,1951.9,8.1693]
[1742567397801,2.33512,1952.0,1951.9,9.19443]
[1742567399698,1.025,1952.2,1952.1,1.02499]
[1742567399907,1.02502,1952.1,1952.0,2.32875]
[1742567400208,1.02502,1952.1,1952.0,1.3037]
[1742567400508,1.02518,1951.8,1951.7,4.23303]
[1742567400703,1.02518,1951.8,1951.7,7.86703]
[1742567400902,1.02529,1951.6,1951.5,3.2078]
[1742567401309,1.02529,1951.6,1951.5,3.634]
[1742567401602,1.02529,1951.6,1951.4,3.634]
[1742567401603,1.02534,1951.5,1951.4,3.634]
[1742567401810,1.02539,1951.4,1951.3,1.3037]
[1742567402104,1.02539,1951.4,1951.3,4.9377]
[1742567402307,0.00767794,1951.6,1951.3,8.1455]
[1742567402507,0.00767794,1951.6,1951.5,4.23314]
[1742567403010,0.00767794,1951.6,1951.5,5.64054]
[1742567404104,1.03296794,1951.6,1951.5,5.64054]
[1742567404303,0.00767794,1951.6,1951.5,5.64054]
[1742567405404,1.03296794,1951.6,1951.5,4.6152]
[1742567405712,1.03296794,1951.6,1951.5,5.0414]
[1742567405908,1.03296794,1951.6,1951.5,8.2492]
[1742567406403,1.03296794,1951.6,1951.5,5.0414]
[1742567406809,1.72156794,1951.6,1951.5,9.27454]
[1742567407005,0.00767794,1951.6,1951.5,9.27454]
[1742567407310,1.03296794,1951.6,1951.5,8.2492]
[1742567407513,0.00767794,1951.6,1951.5,9.27454]
[1742567407902,0.00767794,1951.6,1951.5,9.93596097]
[1742567408413,1.03296794,1951.6,1951.5,8.91062097]
[1742567408608,1.03296794,1951.6,1951.5,5.70282097]
[1742567409014,1.03296794,1951.6,1951.5,9.93596097]
[1742567409312,1.03296794,1951.6,1951.5,9.27454]
[1742567410107,1.03296794,1951.6,1951.5,8.2492]
[1742567410505,0.00767794,1951.6,1951.5,9.27454]
[1742567410711,1.03296794,1951.6,1951.5,9.27454]
[1742567411018,1.03296794,1951.6,1951.5,9.93626291]
[1742567411316,1.03296794,1951.6,1951.5,9.93604982]
[1742567411509,1.03296794,1951.6,1951.5,8.91070982]
[1742567411711,1.03296794,1951.6,1951.5,5.70290982]
[1742567412018,1.03296794,1951.6,1951.5,5.0414]
[1742567412315,1.73566794,1951.6,1951.5,5.0414]
[1742567412513,1.73566794,1951.6,1951.5,3.634]
[1742567412924,1.02539,1951.4,1951.3,5.026]
[1742567413219,5.83695794,1951.6,1951.3,5.026]
[1742567413220,3.02459,1951.5,1951.3,8.2338]
[1742567413421,1.69649,1951.5,1951.4,1.392]
[1742567413917,1.69644,1951.5,1951.4,1.392]
[1742567414118,1.69644,1951.5,1951.4,2.41739]
[1742567414310,1.69644,1951.5,1951.4,3.07947366]
[1742567414815,1.03299794,1951.6,1951.5,1.02534]
[1742567415019,1.03299794,1951.6,1951.5,2.35754]
[1742567415519,1.03299794,1951.6,1951.5,1.3322]
[1742567415717,1.03299794,1951.6,1951.5,5.56534]
[1742567415923,0.00767794,1951.6,1951.5,5.56534]
[1742567416111,0.00767794,1951.6,1951.5,6.22747755]
[1742567416824,1.03296794,1951.6,1951.5,6.22747755]
[1742567417026,1.03296794,1951.6,1951.5,46.00213755]
[1742567417325,1.03296794,1951.6,1951.5,6.22747755]
[1742567417624,1.03296794,1951.6,1951.5,5.20213755]
[1742567418228,1.03296794,1951.6,1951.5,6.22747755]
[1742567418627,1.03296794,1951.6,1951.5,5.20213755]
[1742567418823,1.03296794,1951.6,1951.5,1.99433755]
[1742567419321,0.00767794,1951.6,1951.5,6.22747755]
[1742567419525,1.03296794,1951.6,1951.5,6.22747755]
[1742567420528,0.00767794,1951.6,1951.5,6.22747755]
[1742567421027,1.03296794,1951.6,1951.5,6.22747755]
[1742567421420,0.00767794,1951.6,1951.5,6.22747755]
[1742567422226,1.03296794,1951.6,1951.5,6.22747755]
[1742567422423,1.03296794,1951.6,1951.5,5.56534]
[1742567422825,1.03296794,1951.6,1951.5,6.22823858]
[1742567424822,1.03296794,1951.6,1951.5,5.20289858]
[1742567425023,1.03296794,1951.6,1951.5,8.83589858]
[1742567425225,2.46766794,1951.6,1951.5,4.29589858]
[1742567425622,2.46766794,1951.6,1951.5,0.66289858]
[1742567425825,2.46766794,1951.6,1951.5,3.633]
[1742567428635,2.46766794,1951.6,1951.4,3.633]
[1742567428636,1.02534,1951.5,1951.4,3.633]
[1742567428827,3.04474,1951.5,1951.4,3.633]
[1742567429228,3.04474,1951.5,1951.4,4.65839]
[1742567429433,3.04474,1951.5,1951.4,3.633]
[1742567430233,3.04474,1951.5,1951.4,4.29591589]
[1742567430628,3.04474,1951.5,1951.4,3.633]
[1742567431029,1.02544,1951.3,1951.2,50.5738]
[1742567431240,1.02544,1951.3,1951.2,54.2068]
[1742567431629,1.72794,1951.3,1951.2,52.4166]
[1742567431940,1.72794,1951.3,1951.2,55.6244]
[1742567432530,1.72794,1951.3,1951.2,50.5738]
[1742567432730,1.12167061,1951.3,1950.8,4.23349]
[1742567432932,1.0256,1951.0,1950.9,3.633]
[1742567433325,3.1306,1951.0,1950.9,4.29590524]
[1742567433527,3.1306,1951.0,1950.9,5.70620524]
[1742567433931,3.1306,1951.0,1950.9,8.91400524]
[1742567434134,3.1306,1951.0,1950.9,0.66290524]
[1742567434632,2.105,1951.0,1950.9,4.23346]
[1742567434828,0.7025,1951.3,1951.0,2.56401]
[1742567435030,2.1372,1951.3,1951.2,4.2333]
[1742567435340,3.16264,1951.3,1951.2,4.2333]
[1742567435632,2.1372,1951.3,1951.2,4.2333]
[1742567435940,0.6703,1951.5,1951.2,4.2333]
[1742567435941,1.02543,1951.4,1951.2,5.9425893]
[1742567436132,1.02543,1951.4,1951.3,2.40174]
[1742567436324,0.6609,1951.5,1951.4,1.02539]
[1742567436529,0.6609,1951.5,1951.4,50.04249]
[1742567436932,0.6609,1951.5,1951.4,9.24249]
[1742567437433,1.68624,1951.5,1951.4,9.24249]
[1742567437637,3.08034,1951.5,1951.4,9.90459151]
[1742567437931,0.00767794,1951.6,1951.5,1.02534]
[1742567438147,0.00767794,1951.6,1951.5,2.40164]
[1742567438535,0.00767794,1951.6,1951.5,3.06374151]
[1742567441241,1.03296794,1951.6,1951.5,3.06374151]
[1742567442539,1.03296794,1951.6,1951.5,1.3763]
[1742567442738,1.03296794,1951.6,1951.5,5.0093]
[1742567443336,1.03296794,1951.6,1951.5,6.03464]
[1742567443641,0.00767794,1951.6,1951.5,6.03464]
[1742567444135,0.00767794,1951.6,1951.5,6.69670946]
[1742567444338,1.03296794,1951.6,1951.5,6.69670946]
[1742567444542,0.00767794,1951.6,1951.5,6.69670946]
[1742567446344,0.7158,1951.9,1951.8,1.02518]
[1742567446641,0.7158,1951.9,1951.8,7.86598]
[1742567446838,1.02499,1952.2,1951.8,6.8408]
[1742567447040,0.6817,1952.5,1952.1,5.77037]
[1742567447234,1.02488,1952.4,1952.3,1.02488]
[1742567447440,2.43538,1952.4,1952.3,5.65978]
[1742567447938,0.00767794,1952.5,1952.4,1.02487]
[1742567448146,0.00767794,1952.5,1952.4,2.40987]
[1742567448336,0.00767794,1952.5,1952.4,2.95807]
[1742567449339,0.6574,1952.9,1952.4,2.95807]
[1742567449340,1.0247,1952.8,1952.7,1.02471]
[1742567449542,2.396,1952.8,1952.7,6.8398]
[1742567450642,2.396,1952.8,1952.7,8.2248]
[1742567450940,1.3713,1952.8,1952.7,9.24951]
[1742567451641,2.39596,1952.8,1952.7,8.2248]
[1742567451848,2.39596,1952.8,1952.7,9.24951]
[1742567452945,1.3713,1952.8,1952.7,9.24951]
[1742567453242,0.00767794,1952.9,1952.8,1.02466]
[1742567453442,0.00767794,1952.9,1952.8,3.03636]
[1742567453640,1.3391,1953.2,1953.1,1.0245]
[1742567453845,1.02433,1953.5,1953.1,6.8388]
[1742567454049,3.11553,1953.5,1953.4,3.2078]
[1742567454344,3.11553,1953.5,1953.4,6.8388]
[1742567454649,3.11553,1953.5,1953.4,8.2116]
[1742567455950,1.02434,1953.4,1953.3,0.00767794]
[1742567456155,2.40834,1953.4,1953.3,5.01047794]
[1742567457049,1.384,1953.4,1953.3,6.03486794]
[1742567457355,1.73153,1953.5,1953.4,1.02434]
[1742567457356,0.7072,1953.5,1953.4,1.02434]
[1742567457550,0.7072,1953.5,1953.4,2.41144]
[1742567458156,1.03192794,1953.6,1953.4,2.4114]
[1742567458347,1.03192794,1953.6,1953.3,4.88047794]
[1742567458348,0.00767794,1953.6,1953.5,4.5949]
[1742567458548,1.03191794,1953.6,1953.5,5.61919]
[1742567458748,1.03191794,1953.6,1953.5,4.5949]
[1742567459346,1.02434,1953.4,1953.3,0.00767794]
[1742567459655,1.02434,1953.4,1953.3,3.63767794]
[1742567460041,1.72284,1953.4,1953.3,3.63767794]
[1742567460250,1.0245,1953.1,1953.0,1.3871]
[1742567460452,1.0245,1953.1,1953.0,3.63]
[1742567461354,2.3261,1953.1,1953.0,3.63]
[1742567461555,1.02455,1953.0,1952.9,0.00767794]
[1742567461756,3.02465,1953.0,1952.9,3.63667794]
[1742567462952,3.02465,1953.0,1952.9,4.95397794]
[1742567463652,3.02465,1953.0,1952.9,0.00767794]
[1742567463952,3.02465,1953.0,1952.3,50.5628]
[1742567463953,1.02487,1952.4,1952.3,50.5628]
[1742567464153,1.02487,1952.4,1952.3,55.612]
[1742567464849,2.36607,1952.4,1952.3,50.984]
[1742567465749,1.02492,1952.3,1952.2,0.00767794]
[1742567465949,2.5625,1952.2,1951.9,3.2078]
[1742567466157,1.02508,1952.0,1951.9,3.2078]
[1742567466346,7.11163,1952.1,1951.4,3.2078]
[1742567466545,1.02531,1951.6,1951.5,3.629]
[1742567466755,1.02531,1951.6,1951.5,1.4217]
[1742567466958,1.02531,1951.6,1951.5,45.8507]
[1742567467360,1.02531,1951.6,1951.5,3.629]
[1742567467762,1.02534,1951.5,1951.4,3.63]
[1742567467952,2.33064,1951.5,1951.4,3.63]
[1742567468355,1.3053,1951.5,1951.2,1.4217]
[1742567468559,1.02566,1950.9,1950.8,50.5698]
[1742567469058,1.02566,1950.9,1950.8,91.3698]
[1742567469454,2.37106,1950.9,1950.8,91.3698]
[1742567469654,2.37106,1950.9,1950.8,94.9988]
[1742567469850,0.00767794,1951.0,1950.8,96.02451]
[1742567470053,0.00767794,1951.0,1950.9,2.43036]
[1742567470259,1.03327794,1951.0,1950.9,1.4047]
[1742567470460,0.00767794,1951.0,1950.9,1.4047]
[1742567470763,2.37867794,1951.0,1950.9,1.4047]
[1742567471765,1.03327794,1951.0,1950.9,2.43036]
[1742567472659,1.03327794,1951.0,1950.9,43.23036]
[1742567472660,0.00767794,1951.0,1950.9,43.23036]
[1742567473162,1.03327794,1951.0,1950.9,42.2047]
[1742567473363,1.03327794,1951.0,1950.9,43.23036]
[1742567473551,0.00767794,1951.0,1950.9,43.23036]
[1742567474162,1.03327794,1951.0,1950.9,42.2047]
[1742567474765,1.03327794,1951.0,1950.9,43.23036]
[1742567474966,0.00767794,1951.0,1950.9,43.23036]
[1742567475464,1.03327794,1951.0,1950.9,43.23036]
[1742567475667,0.00767794,1951.0,1950.9,43.23036]
[1742567476465,1.03327794,1951.0,1950.9,43.23036]
[1742567476866,1.03327794,1951.0,1950.9,42.2047]
[1742567477069,1.03327794,1951.0,1950.9,45.8357]
[1742567477867,1.03327794,1951.0,1950.9,5.0357]
[1742567478068,1.03327794,1951.0,1950.9,6.06136]
[1742567478268,1.03327794,1951.0,1950.9,5.0357]
[1742567478469,1.03327794,1951.0,1950.9,6.06136]
[1742567478661,1.03327794,1951.0,1950.9,5.0357]
[1742567479459,1.03327794,1951.0,1950.8,50.5698]
[1742567479460,1.02566,1950.9,1950.8,50.5698]
[1742567479667,3.04016,1950.9,1950.8,54.2008]
[1742567481373,3.04016,1950.9,1950.8,55.22651]
[1742567481561,0.00767794,1951.0,1950.9,1.02566]
[1742567481868,0.00767794,1951.0,1950.9,2.38016]
[1742567482171,0.00767794,1951.0,1950.9,43.18016]
[1742567483062,1.03327794,1951.0,1950.9,43.18016]
[1742567483267,0.00767794,1951.0,1950.9,43.18016]
[1742567484373,1.03327794,1951.0,1950.9,43.18016]
[1742567484673,2.34367794,1951.0,1950.9,42.1545]
[1742567484873,2.34367794,1951.0,1950.9,43.18016]
[1742567485062,0.00767794,1951.0,1950.9,43.18016]
[1742567486577,1.3104,1951.4,1951.3,1.02544]
[1742567486872,2.33579,1951.4,1951.3,6.8388]
[1742567487272,2.33579,1951.4,1951.3,3.631]
[1742567487472,1.0255,1951.2,1951.1,4.9706]
[1742567487671,1.0255,1951.2,1951.1,3.631]
[1742567488172,1.02555,1951.1,1951.0,0.00767794]
[1742567488368,3.10805,1951.1,1951.0,0.00767794]
[1742567493273,3.79305,1951.1,1951.0,0.00767794]
[1742567493780,1.02571,1950.8,1950.7,4.5102]
[1742567493974,1.02571,1950.8,1950.7,3.2078]
[1742567494373,1.02571,1950.8,1950.7,5.55266]
[1742567494574,1.02571,1950.8,1950.7,4.5269]
[1742567494976,1.02571,1950.8,1950.7,5.55266]
[1742567495276,1.3972,1951.1,1950.8,2.56428]
[1742567495482,2.06,1951.1,1951.0,4.2334]
[1742567495773,2.37331,1951.2,1951.1,1.02555]
[1742567495980,2.37331,1951.2,1951.1,1.3191]
[1742567496781,2.37331,1951.2,1950.8,3.7558]
[1742567496782,1.02566,1950.9,1950.8,4.23347]
[1742567496980,1.02566,1950.9,1950.8,7.86447]
[1742567497175,1.02566,1950.9,1950.8,8.52710962]
[1742567498177,2.35746,1950.9,1950.8,8.90363962]
[1742567499575,1.3318,1950.9,1950.8,8.90363962]
[1742567499782,1.67282,1951.0,1950.9,1.02566]
[1742567500087,0.6472,1951.0,1950.9,2.38146]
[1742567500488,1.6728,1951.0,1950.9,3.04409962]
[1742567500687,3.0801,1951.0,1950.9,3.04409962]
[1742567500882,1.02547,1951.3,1951.2,1.02544]
[1742567501089,2.7877,1951.4,1951.3,1.02544]
[1742567501387,3.81309,1951.4,1951.3,3.04387962]
[1742567501788,1.70089,1951.4,1951.3,3.04387962]
[1742567501989,3.10819,1951.4,1951.3,2.01843962]
[1742567502177,2.0828,1951.4,1951.3,3.04387962]
[1742567502383,1.03305794,1951.5,1951.3,3.04387962]
[1742567502384,0.00767794,1951.5,1951.4,1.02539]
[1742567502579,0.00767794,1951.5,1951.4,5.58899]
[1742567503297,0.00767794,1951.5,1951.4,6.80022962]
[1742567503502,1.02515,1951.9,1951.8,1.02513]
[1742567503795,1.02515,1951.9,1951.8,4.65513]
[1742567503993,1.02515,1951.9,1951.8,5.31776962]
[1742567504189,2.40215,1951.9,1951.8,6.69076962]
[1742567504701,2.40215,1951.9,1951.8,5.003]
[1742567504899,2.40215,1951.9,1951.8,3.63]
[1742567507093,1.377,1951.9,1951.8,6.04948]
[1742567507296,0.00767794,1952.0,1951.9,1.02513]
[1742567507500,1.3594,1952.2,1952.1,1.02502]
[1742567507801,1.02494,1952.3,1952.2,1.02496]
[1742567507990,1.02494,1952.3,1952.2,2.41926]
[1742567507991,1.3594,1952.3,1952.2,2.41926]
[1742567508195,1.73789,1952.4,1952.2,2.41924]
[1742567508398,1.73789,1952.4,1952.3,1.02492]
[1742567508890,0.713,1952.4,1952.3,4.23272]
[1742567509092,0.00767794,1952.5,1952.4,1.02487]
[1742567509295,0.00767794,1952.5,1952.4,6.01307]
[1742567509806,0.00767794,1952.5,1952.4,46.81307]
[1742567511701,0.00767794,1952.5,1952.4,6.01207]
[1742567513097,0.6961,1952.8,1952.7,1.02471]
[1742567513400,0.6961,1952.8,1952.7,7.86051]
[1742567513602,2.0605,1952.8,1952.7,7.86051]
[1742567513999,3.08516,1952.8,1952.7,6.8358]
[1742567514203,3.08516,1952.8,1952.7,3.628]
[1742567514999,2.0605,1952.8,1952.5,1.02481]
[1742567515303,3.08516,1952.8,1952.7,3.628]
[1742567516996,3.08516,1952.8,1952.7,4.9232]
[1742567517199,2.0605,1952.8,1952.7,5.94791]
[1742567517706,3.08516,1952.8,1952.7,5.94791]
[1742567518909,0.6961,1952.8,1952.7,5.94791]
[1742567519209,0.00767794,1952.9,1952.8,1.02466]
[1742567519411,0.00767794,1952.9,1952.8,5.53446]
[1742567519597,0.6769,1953.1,1952.8,4.5098]
[1742567519803,1.7014,1953.1,1953.0,3.2078]
[1742567520000,1.7014,1953.1,1953.0,3.626]
[1742567520997,0.6769,1953.1,1953.0,7.85835]
[1742567521910,1.7014,1953.1,1953.0,3.626]
[1742567522211,3.0486,1953.1,1953.0,7.85835]
[1742567522406,3.0486,1953.1,1953.0,3.626]
[1742567522808,2.0241,1953.1,1953.0,7.85835]
[1742567523203,3.0486,1953.1,1953.0,7.85835]
[1742567523708,0.6769,1953.1,1953.0,9.28005]
[1742567523903,0.00767794,1953.2,1953.0,9.28005]
[1742567523904,1.02441,1953.4,1953.3,1.02436]
[1742567524106,1.02441,1953.4,1953.3,6.8338]
[1742567524612,1.02441,1953.4,1953.3,8.2544]
[1742567525013,1.02441,1953.4,1953.3,9.27879]
[1742567525204,1.03199794,1953.5,1953.4,1.02434]
[1742567525399,1.03199794,1953.5,1953.4,2.44494]
[1742567525801,0.00767794,1953.5,1953.4,2.44494]
[1742567527111,1.03196794,1953.5,1953.4,2.44494]
[1742567527405,1.03196794,1953.5,1953.4,1.4206]
[1742567528010,1.03196794,1953.5,1953.4,5.0456]
[1742567528207,0.00767794,1953.5,1953.1,3.2078]
[1742567528409,1.02445,1953.2,1953.1,3.625]
[1742567528606,1.02455,1953.0,1952.9,0.00767794]
[1742567529316,7.0614,1953.0,1952.4,3.2078]
[1742567529616,1.02481,1952.5,1952.4,3.2078]
[1742567529816,1.02468,1952.8,1952.5,1.3348]
[1742567530007,1.02471,1952.7,1952.6,4.64875]
[1742567530313,1.3536,1953.0,1952.6,3.624]
[1742567530513,1.02463,1952.9,1952.8,3.2078]
[1742567530815,2.37815,1953.0,1952.9,1.0246]
[1742567531013,1.3536,1953.0,1952.9,6.0241]
[1742567531216,1.3585,1953.1,1953.0,1.02455]
[1742567531416,1.02442,1953.3,1953.2,1.02445]
[1742567531605,0.00767794,1953.5,1953.3,1.02439]
[1742567531606,1.4277,1953.4,1953.3,1.02439]
[1742567531807,0.67477794,1953.5,1953.4,1.02434]
[1742567532116,1.02434,1953.4,1953.3,2.39885]
[1742567532309,1.02434,1953.4,1953.3,1.3745]
[1742567532512,3.11364,1953.4,1953.3,1.3745]
[1742567532906,3.11364,1953.4,1953.3,4.9985]
[1742567533710,3.11364,1953.4,1953.3,6.02289]
[1742567533912,0.6616,1953.4,1953.3,6.02289]
[1742567534116,0.67477794,1953.5,1953.4,1.02434]
[1742567534117,0.00767794,1953.5,1953.4,1.02434]
[1742567534312,0.00767794,1953.5,1953.4,5.64984]
[1742567534818,0.00767794,1953.5,1953.4,6.34374]
[1742567535110,13.0558,1954.3,1953.4,6.34374]
[1742567535111,1.02394,1954.2,1953.7,1.02419]
[1742567535303,3.09902,1954.2,1954.1,3.2078]
[1742567537013,2.0751,1954.2,1954.1,9.17968]
[1742567537607,0.00767794,1954.3,1954.2,1.02392]
[1742567537811,1.02372,1954.6,1954.4,1.02382]
[1742567538113,1.02372,1954.6,1954.5,4.9479]
[1742567538114,2.45042,1954.6,1954.5,4.9479]
[1742567538709,2.45042,1954.6,1954.5,3.623]
[1742567539113,1.02382,1954.4,1954.3,1.3249]
[1742567539315,1.02382,1954.4,1954.3,4.9479]
[1742567539815,1.3086,1954.4,1954.3,9.17957]
[1742567540013,0.0051186,1954.7,1954.3,9.17953]
[1742567540212,0.0051186,1954.7,1954.4,1.3035]
[1742567540514,1.02375,1954.6,1954.4,2.32731]
[1742567540817,1.0288086,1954.7,1954.4,2.32728]
[1742567541119,1.02371,1954.6,1954.5,3.2078]
[1742567541418,1.02371,1954.6,1954.5,6.8298]
[1742567541816,1.02371,1954.6,1954.5,3.622]
[1742567542021,2.45911,1954.6,1954.5,3.622]
[1742567544223,1.02377,1954.5,1954.4,1.3035]
[1742567544414,2.45917,1954.5,1954.4,4.9255]
[1742567544611,0.0051186,1954.7,1954.4,4.9255]
[1742567544914,3.2078,1955.2,1954.5,4.6175]
[1742567545116,1.02352,1955.0,1954.7,4.23142]
[1742567545314,1.3803,1955.1,1954.8,5.0042]
[1742567545515,1.02355,1955.0,1954.9,1.3822]
[1742567545715,1.0235,1955.0,1954.9,1.3822]
[1742567545922,2.40379,1955.1,1954.9,1.3822]
[1742567546117,1.02332,1955.4,1955.1,1.02345]
[1742567546321,1.3803,1955.4,1955.2,5.0032]
[1742567546625,1.02335,1955.3,1955.2,5.0032]
[1742567546815,2.40363,1955.4,1955.2,5.0032]
[1742567547019,2.40363,1955.4,1955.3,3.2078]
[1742567547219,2.40363,1955.4,1955.2,6.02659]
[1742567547517,1.02335,1955.3,1955.2,5.0032]
[1742567547718,2.40363,1955.4,1955.2,5.0032]
[1742567548022,1.3803,1955.4,1955.3,3.2078]
[1742567548214,0.6657,1955.6,1955.3,3.2078]
[1742567548419,1.3413,1955.7,1955.5,3.2078]
[1742567548623,2.36444,1955.7,1955.6,5.0263]
[1742567548825,1.02314,1955.7,1955.6,5.0263]
[1742567549030,1.02311,1955.8,1955.6,5.0263]
[1742567549328,1.02311,1955.8,1955.7,1.4053]
[1742567549819,1.3413,1956.0,1955.7,1.4053]
[1742567550017,1.02309,1955.8,1955.7,1.4053]
[1742567552127,1.02319,1955.6,1955.5,3.2078]
[1742567552423,1.02315,1955.7,1955.5,7.85103]
[1742567553022,1.02317,1955.7,1955.5,7.85103]
[1742567553424,1.02317,1955.7,1955.6,1.3108]
[1742567553826,1.02314,1955.7,1955.6,1.3108]
[1742567556723,0.6885,1955.8,1955.6,3.619]
[1742567556921,1.02324,1955.5,1955.4,1.4348]
[1742567557916,2.31843,1955.6,1955.4,2.45807]
[1742567558132,1.02323,1955.6,1955.4,5.66588]
[1742567558424,2.31843,1955.6,1955.5,1.3732]
[1742567558628,1.02323,1955.6,1955.5,1.3732]
[1742567559027,2.31843,1955.6,1955.5,1.3732]
[1742567559223,1.2952,1955.6,1955.3,3.618]
[1742567559531,1.02329,1955.4,1955.3,3.618]
[1742567560423,1.2952,1955.5,1955.3,3.618]
[1742567560424,2.31848,1955.5,1955.3,3.618]
[1742567560627,2.31848,1955.5,1955.3,4.64133]
[1742567560828,1.02328,1955.5,1955.4,1.02329]
[1742567561017,1.02328,1955.5,1955.3,4.64131]
[1742567561224,1.02329,1955.4,1955.3,3.618]
[1742567561429,1.02329,1955.4,1955.3,6.8258]
[1742567561732,1.02329,1955.4,1955.3,7.84915]
[1742567562227,0.6908,1955.7,1955.5,1.02323]
[1742567562423,1.71397,1955.7,1955.6,3.618]
[1742567562624,0.6908,1955.7,1955.6,4.64119]
[1742567562820,1.71394,1955.7,1955.6,3.618]
[1742567563130,1.71394,1955.7,1955.6,4.64119]
[1742567563427,1.71394,1955.7,1955.6,3.618]
[1742567563830,1.02326,1955.5,1955.3,5.55012]
[1742567564127,0.6908,1955.7,1955.5,1.02324]
[1742567564319,1.3148,1956.0,1955.5,5.76589]
[1742567564522,1.02297,1956.1,1955.7,5.76565]
[1742567564826,0.6868,1956.3,1956.2,1.02288]
[1742567565024,1.02289,1956.2,1956.1,3.2078]
[1742567565220,1.02288,1956.2,1956.1,3.618]
[1742567565428,1.02288,1956.2,1956.1,6.8258]
[1742567565731,1.02288,1956.2,1956.1,7.84873]
[1742567565934,1.02288,1956.2,1956.1,6.8258]
[1742567566533,2.43088,1956.2,1956.1,6.8258]
[1742567566927,2.43088,1956.2,1956.1,3.618]
[1742567567235,2.55733,1956.1,1955.9,3.617]
[1742567567534,2.43098,1956.0,1955.9,3.617]
[1742567568434,1.02298,1956.0,1955.9,3.617]
[1742567568639,2.43098,1956.0,1955.9,3.617]
[1742567568832,2.55772,1955.8,1955.4,3.8736]
[1742567569138,2.55772,1955.8,1955.6,3.617]
[1742567569139,2.43224,1955.7,1955.6,3.617]
[1742567569334,3.74384,1955.7,1955.6,3.617]
[1742567570229,5.27867,1955.7,1955.3,3.617]
[1742567570440,1.02329,1955.4,1955.3,3.617]
[1742567571334,2.5582,1955.5,1955.1,0.00767794]
[1742567571539,1.0234,1955.2,1955.1,3.62467794]
[1742567572135,3.0483,1955.2,1955.1,3.62467794]
[1742567572335,3.0483,1955.2,1955.1,0.00767794]
[1742567573942,1.02361,1954.8,1954.7,47.288]